fUST/lending_fUST_20240109
["ID","MTS","AMOUNT","RATE_DAILY","PERIOD"]
[310898620,1704809241332,-2258.14515333,0.00026527,2]
[310898621,1704809241370,-46.08459497,0.00026527,2]
[310898625,1704809246902,-1170.94071575,0.00026526,2]
[310898626,1704809247136,-23.8967493,0.00026526,2]
[310898630,1704809268729,-809.19543681,0.00026523,2]
[310898631,1704809268914,-16.51419259,0.00026523,2]
[310898643,1704809343374,-166.908532,0.00026064,2]
[310898645,1704809350935,-294.3543158,0.00027248,2]
[310898646,1704809353160,157.68327504,0.00027248,2]
[310898647,1704809353195,452.03759084,0.00027248,2]
[310898648,1704809353229,366.07507512,0.00027248,2]
[310898649,1704809353571,-451.65400802,0.00027248,2]
[310898650,1704809353748,154.8915759,0.00027248,2]
[310898651,1704809355397,358.77519008,0.00027248,2]
[310898652,1704809355884,-228.16455537,0.00027248,2]
[310898653,1704809357000,154.8915759,0.00027248,4]
[310898654,1704809358223,4.11549435,0.00024767,2]
[310898655,1704809358256,387.17162562,0.00024767,2]
[310898656,1704809358290,387.17162562,0.00024767,2]
[310898657,1704809358323,333.55229591,0.00024767,2]
[310898666,1704809375666,-154.8915759,0.00024767,4]
[310898667,1704809375699,-964.95880764,0.00024767,2]
[310898668,1704809375816,-10.83713336,0.00024767,2]
[310898669,1704809379694,-439.35135649,0.00024766,2]
[310898670,1704809380228,154.78333423,0.00024767,2]
[310898671,1704809380260,594.13469072,0.00024767,2]
[310898672,1704809380292,363.09301655,0.00024767,2]
[310898673,1704809385496,-264.80820677,0.00027248,2]
[310898681,1704809393060,-154.8915759,0.00024762,4]
[310898682,1704809393093,-312.91539313,0.00027248,2]
[310898683,1704809394164,-1095.4538,0.00027497,3]
[310898684,1704809394207,-22.3562,0.00027497,3]
[310898685,1704809395149,2.4204776,0.00024762,2]
[310898686,1704809395181,470.22744663,0.00024762,2]
[310898687,1704809395213,168.03336036,0.00024762,2]
[310898688,1704809395577,470.22744663,0.00027248,2]
[310898689,1704809395608,494.10955018,0.00027248,2]
[310898690,1704809396235,294.95640203,0.00024755,2]
[310898691,1704809396266,789.06595221,0.00024755,2]
[310898692,1704809396300,27.98868726,0.00024755,2]
[310898693,1704809402290,-712.70320939,0.00024761,2]
[310898694,1704809402436,-712.70320939,0.00024761,2]
[310898695,1704809402588,-40.44558054,0.00024761,2]
[310898696,1704809402619,-560.33964085,0.00027248,2]
[310898697,1704809406159,-1532.7494,0.00027497,3]
[310898698,1704809406201,-31.2806,0.00027497,3]
[310898699,1704809406494,-166.908532,0.00027249,2]
[310898700,1704809406527,-1698.82244285,0.000275,2]
[310898701,1704809406611,-38.07614234,0.000275,2]
[310898702,1704809412542,-606.9399809,0.00024767,2]
[310898703,1704809412907,-12.38653022,0.00024767,2]
[310898704,1704809413053,154.8915759,0.00024755,4]
[310898705,1704809414235,439.66187478,0.00024755,2]
[310898706,1704809414608,-66.1857583,0.00024755,2]
[310898707,1704809415799,429.54492212,0.00020629,2]
[310898708,1704809415832,495.73068042,0.00020629,2]
[310898709,1704809415867,540.57639678,0.00020629,2]
[310898710,1704809417857,-1277.283,0.00027497,3]
[310898711,1704809418068,-26.067,0.00027497,3]
[310898712,1704809419619,-955.53983254,0.00024755,2]
[310898713,1704809419884,-19.50081291,0.00024755,2]
[310898714,1704809420456,-1380.32288226,0.0002651,2]
[310898715,1704809420578,-28.16985474,0.0002651,2]
[310898716,1704809420613,-1352.15302752,0.0002651,2]
[310898717,1704809420797,-56.33970948,0.0002651,2]
[310898718,1704809420829,-1323.98317278,0.0002651,2]
[310898719,1704809420882,-84.50956422,0.0002651,2]
[310898721,1704809420914,-1295.81331804,0.0002651,2]
[310898722,1704809421107,-112.67941896,0.0002651,2]
[310898723,1704809421141,-1408.492737,0.0002651,2]
[310898724,1704809429090,-154.8915759,0.00024755,4]
[310898725,1704809429124,-342.35012709,0.00024767,2]
[310898726,1704809429154,-11.22179992,0.00026238,2]
[310898727,1704809429395,-165.26838208,0.00026238,2]
[310898728,1704809429627,-1064.4074,0.00027496,3]
[310898729,1704809429748,-21.7226,0.00027496,3]
[310898730,1704809431794,1465.85199932,0.00020629,2]
[310898779,1704809432570,-460.02917635,0.00024767,2]
[310898780,1704809432704,-9.38835054,0.00024767,2]
[310898811,1704809434668,-586.93974545,0.00027504,2]
[310898813,1704809434677,-11133.31691426,0.00027504,2]
[310898863,1704809437050,-9723.25471351,0.00027504,2]
[310898864,1704809437062,-20828.12716016,0.00027504,2]
[310898865,1704809437072,-947.34353214,0.00027505,2]
[310898866,1704809437083,-312.91539313,0.00027505,2]
[310898867,1704809437095,-209.31781528,0.00027505,2]
[310898868,1704809437106,-1736.89858519,0.00027505,2]
[310898869,1704809437119,-23806.58799441,0.00027505,2]
[310898870,1704809437131,-264.80820677,0.00027506,2]
[310898871,1704809437144,-464.41430275,0.00027506,2]
[310898872,1704809437156,-3737.09785385,0.00027506,2]
[310898873,1704809437167,-4916.51301772,0.00027506,2]
[310898874,1704809437180,-82497.00903012,0.00027506,2]
[310898875,1704809437193,-374.67004871,0.00027506,4]
[310898876,1704809437205,-18457.71590284,0.00027507,2]
[310898877,1704809437403,-13450.5888,0.00027507,2]
[310898878,1704809437416,-52965.93558813,0.00027507,2]
[310898917,1704809439052,-853.38318073,0.00027503,2]
[310898918,1704809439070,-17890.61681929,0.00027507,2]
[310898919,1704809439150,-9930.95153575,0.00027507,2]
[310898922,1704809440239,-887.0078,0.00027496,3]
[310898923,1704809440361,-18.1022,0.00027496,3]
[310898942,1704809441860,-154.8915759,0.00027503,2]
[310898943,1704809441870,-3881.64405452,0.00027507,2]
[310898944,1704809441882,-9380.80495356,0.00027507,2]
[310898955,1704809444019,-154.8915759,0.00027503,2]
[310898957,1704809444029,-155.66794265,0.00027507,2]
[310898994,1704809445366,-154.8915759,0.00024755,4]
[310898995,1704809445398,-180.07596965,0.00024755,2]
[310898996,1704809445610,-161.72764826,0.00024755,2]
[310899073,1704809451885,-739.1748,0.00027497,3]
[310899074,1704809452035,-15.0852,0.00027497,3]
[310899076,1704809465569,154.8915759,0.00024755,4]
[310899077,1704809473728,-1247.82964834,0.00024755,2]
[310899078,1704809473990,-25.46591119,0.00024755,2]
[310899079,1704809475806,546.667706,0.00024755,2]
[310899080,1704809483024,154.8915759,0.00024753,4]
[310899081,1704809484129,-260.2276516,0.00026511,2]
[310899082,1704809484257,-5.3107684,0.00026511,2]
[310899083,1704809485063,254.9168832,0.00024755,2]
[310899084,1704809485094,260.2276516,0.00024755,2]
[310899085,1704809485127,260.2276516,0.00024755,2]
[310899086,1704809485159,260.2276516,0.00024755,2]
[310899087,1704809485191,237.69572153,0.00024755,2]
[310899088,1704809490266,436.49,0.00027494,3]
[310899089,1704809493909,-535.73435188,0.00024755,2]
[310899090,1704809493955,-10.93335412,0.00024755,2]
[310899095,1704809529498,-154.8915759,0.00024752,4]
[310899096,1704809529529,-555.8,0.00027494,3]
[310899097,1704809529560,-463.16,0.00027494,3]
[310899098,1704809529591,-202.9798241,0.00027494,3]
[310899099,1704809529627,-1465.85199932,0.00024754,2]
[310899100,1704809529657,-564.02022379,0.00024755,2]
[310899101,1704809529688,-546.667706,0.00024755,2]
[310899102,1704809529721,-250.0,0.00026502,2]
[310899103,1704809529754,-586.93974545,0.00027492,2]
[310899104,1704809529785,-154.8915759,0.00027493,2]
[310899105,1704809529817,-312.91539313,0.00027493,2]
[310899106,1704809529850,-1118.71335641,0.00027493,2]
[310899107,1704809530010,-182.9901759,0.00027494,3]
[310899108,1704809530047,-2618.38449744,0.00027493,2]
[310899110,1704809552304,1465.85199932,0.00020627,2]
[310899111,1704809568316,456.77870125,0.00020627,2]
[310899139,1704810096571,21070.94090333,0.00020627,2]
[310899140,1704810111719,-3850.47791474,0.00020627,2]
[310899141,1704810111925,-78.58118193,0.00020627,2]
[310899151,1704810330826,-534.83818735,0.00024342,2]
[310899152,1704810331143,-10.91506505,0.00024342,2]
[310899155,1704810403544,-245.0,0.00024387,2]
[310899156,1704810403643,-5.0,0.00024387,2]
[310899161,1704810527925,-3753.89173754,0.00024292,2]
[310899162,1704810528035,-76.61003546,0.00024292,2]
[310899163,1704810528065,-273.11223,0.00024292,2]
[310899207,1704810631963,-312.91539313,0.00024717,2]
[310899209,1704810631974,-901.51710272,0.00024717,2]
[310899211,1704810631984,-154.90705577,0.00024718,4]
[310899213,1704810631994,-1290.72817531,0.00024718,2]
[310899215,1704810632004,-8394.05345743,0.00024733,2]
[310899217,1704810632013,-166.908532,0.00025338,2]
[310899219,1704810632023,-973.42002616,0.00025407,2]
[310899221,1704810632033,-155.26625919,0.00025614,2]
[310899223,1704810632042,-1989.13674223,0.00025614,2]
[310899225,1704810632052,-579.59992972,0.00025614,2]
[310899227,1704810632062,-155.23141833,0.00025614,2]
[310899228,1704810632072,-250.35796176,0.00025614,2]
[310899231,1704810632083,-6722.93832886,0.00025615,2]
[310899233,1704810632093,-24900.0,0.00025616,2]
[310899234,1704810632103,-198.80494625,0.00027493,2]
[310899236,1704810632112,-321.64,0.00027494,3]
[310899238,1704810632121,-268.04,0.00027494,3]
[310899240,1704810632131,-204.88741263,0.00027502,2]
[310899242,1704810632141,-1052.76829989,0.00027502,7]
[310899243,1704810632150,-309.76767502,0.00027502,2]
[310899244,1704810632162,-183.69158468,0.00027502,2]
[310899245,1704810632173,-2249.60039735,0.00027503,2]
[310899246,1704810632183,-500.0,0.00027503,2]
[310899247,1704810632192,-255.28017687,0.00027503,2]
[310899249,1704810632202,-160.57287802,0.00027504,4]
[310899251,1704810632212,-196.98962189,0.00027504,4]
[310899253,1704810632221,-392.07027455,0.00027504,4]
[310899254,1704810632230,-403.40050716,0.00027504,4]
[310899255,1704810632240,-500.0,0.00027504,4]
[310899256,1704810632250,-275.64962102,0.00027504,4]
[310899257,1704810632260,-15866.67570553,0.00027504,2]
[310899271,1704810638070,-223.36,0.00027494,3]
[310899272,1704810638079,-13815.528,0.00027504,2]
[310899360,1704811267913,-470.22744663,0.000225,2]
[310899361,1704811267992,-470.22744663,0.000225,2]
[310899362,1704811268187,-281.54510674,0.000225,2]
[310899363,1704811268368,-188.68233989,0.00024,2]
[310899364,1704811268406,-124.23305324,0.00024,2]
[310899365,1704811268437,-154.90705577,0.00024001,4]
[310899366,1704811268466,-166.908532,0.00024002,2]
[310899368,1704811301418,-371.62182281,0.00022418,2]
[310899369,1704811301451,-154.90705577,0.00022419,4]
[310899370,1704811301485,-4473.47112142,0.00024002,2]
[310899371,1704811301602,-5000.0,0.00024002,2]
[310899372,1704811301714,-5000.0,0.00024002,2]
[310899373,1704811301827,-4388.22062284,0.00024002,2]
[310899374,1704811301856,-533.98993958,0.00024002,2]
[310899375,1704811302864,77.78943758,0.00024002,2]
[310899376,1704811302894,5000.0,0.00024002,2]
[310899377,1704811302923,5000.0,0.00024002,2]
[310899378,1704811302953,200.28262938,0.00024002,2]
[310899379,1704811302988,154.90705577,0.00024002,2]
[310899380,1704811303409,182.50978617,0.00024002,2]
[310899381,1704811304304,154.90705577,0.00024002,2]
[310899382,1704811305082,348.08589145,0.00024002,2]
[310899383,1704811305112,348.08589145,0.00024002,2]
[310899384,1704811305496,-4423.58735505,0.00024002,2]
[310899385,1704811305728,-90.27729296,0.00024002,2]
[310899386,1704811306251,3211.33438873,0.00024002,2]
[310899387,1704811306288,154.90705577,0.00024002,2]
[310899388,1704811307956,154.90705577,0.00024002,2]
[310899389,1704811308022,546.667706,0.00024002,2]
[310899390,1704811309687,154.90705577,0.00024002,7]
[310899391,1704811315519,-5000.0,0.00024002,2]
[310899392,1704811316135,-5000.0,0.00024002,2]
[310899393,1704811316183,-5000.0,0.00024002,2]
[310899394,1704811316255,-3861.69174426,0.00024002,2]
[310899395,1704811316291,154.90705577,0.00024002,2]
[310899396,1704811317155,154.90705577,0.00022419,4]
[310899397,1704811317355,533.98993958,0.00024002,2]
[310899398,1704811319273,182.37638103,0.00024002,2]
[310899399,1704811319434,340.93375976,0.00024002,2]
[310899400,1704811319468,523.31014079,0.00024002,2]
[310899401,1704811319836,-5000.0,0.00024002,2]
[310899402,1704811320038,-4397.95325257,0.00024002,2]
[310899403,1704811320915,154.90705577,0.00024002,2]
[310899404,1704811323195,154.90705577,0.00024002,7]
[310899405,1704811324482,-190.42389936,0.00024002,2]
[310899406,1704811324515,-531.92587389,0.00024002,2]
[310899407,1704811324690,-14.74183211,0.00024002,2]
[310899408,1704811324721,-2661.29571757,0.00024002,2]
[310899409,1704811325599,654.38202679,0.00024002,2]
[310899410,1704811325632,3330.41957647,0.00024002,2]
[310899411,1704811325663,1225.23482765,0.00024002,2]
[310899412,1704811328270,223.74814228,0.00024002,2]
[310899413,1704811333398,-5000.0,0.00024002,2]
[310899414,1704811333503,-2683.21972506,0.00024002,2]
[310899415,1704811335356,238.05947927,0.00024002,2]
[310899416,1704811337415,-154.90705577,0.00022419,4]
[310899417,1704811337445,-149.13083891,0.00024002,2]
[310899418,1704811337592,-5.77621686,0.00024002,2]
[310899419,1704811337623,-155.3356939,0.00024002,2]
[310899420,1704811344422,-535.12729712,0.00024002,2]
[310899421,1704811344588,-10.92096525,0.00024002,2]
[310899422,1704811344621,-524.20633187,0.00024002,2]
[310899423,1704811344710,-535.12729712,0.00024002,2]
[310899424,1704811344744,154.90705577,0.00024002,7]
[310899425,1704811344879,-4150.70280192,0.00024002,2]
[310899426,1704811354735,-230.13859491,0.00024002,2]
[310899427,1704811354883,-4.69670602,0.00024002,2]
[310899428,1704811389605,-267.6499854,0.00024457,2]
[310899429,1704811389706,-5.4622446,0.00024457,2]
[310899430,1704811423048,-326.71171454,0.00022419,2]
[310899431,1704811423292,-6.66758601,0.00022419,2]
[310899432,1704811437611,-4056.93066526,0.00022419,2]
[310899433,1704811437901,-82.79450337,0.00022419,2]
[310899434,1704811508916,-5000.0,0.00024034,2]
[310899435,1704811509084,-5000.0,0.00024034,2]
[310899436,1704811509209,-5000.0,0.00024034,2]
[310899437,1704811509311,-5000.0,0.00024034,2]
[310899438,1704811509426,-4900.0,0.00024034,2]
[310899447,1704811761568,-526.89553082,0.00018553,2]
[310899448,1704811761610,-233.03164213,0.00023732,2]
[310899449,1704811761863,-373.49111263,0.00023732,2]
[310899450,1704811761897,-168.913136,0.00023733,2]
[310899505,1704811841065,-312.91539313,0.00024711,2]
[310899506,1704811841075,-154.90705577,0.00024712,4]
[310899507,1704811841085,-247.74788187,0.00024713,2]
[310899508,1704811841094,-192.79496438,0.00024714,2]
[310899509,1704811841152,-493.61732057,0.00024714,2]
[310899510,1704811841161,-1455.48,0.00024729,3]
[310899511,1704811841170,-1212.9,0.00024729,3]
[310899512,1704811841179,-1010.75,0.00024729,3]
[310899513,1704811841188,-842.29,0.00024729,3]
[310899514,1704811841197,-2069.9093597,0.00024737,2]
[310899515,1704811841206,-608.17836992,0.00024737,2]
[310899516,1704811841215,-2099.91652736,0.00024738,2]
[310899517,1704811841225,-1000.0,0.00024738,2]
[310899518,1704811841233,-1000.0,0.00024738,2]
[310899519,1704811841244,-1000.0,0.00024738,2]
[310899520,1704811841254,-1000.0,0.00024738,2]
[310899521,1704811841263,-1000.0,0.00024738,2]
[310899522,1704811841272,-1000.0,0.00024738,2]
[310899523,1704811841281,-143157.41188563,0.00024739,2]
[310899524,1704811841352,-8191.2684241,0.00024739,2]
[310899641,1704811926992,-164.88125202,0.00022263,2]
[310899642,1704811927155,-860.62181226,0.00022263,2]
[310899643,1704811927185,-312.91539313,0.00024728,2]
[310899644,1704811927215,-7985.3418189,0.00024728,2]
[310899645,1704811927243,-206.45656823,0.00024728,2]
[310899646,1704811927273,-902.57,0.00024729,3]
[310899647,1704811927302,-752.15,0.00024729,3]
[310899648,1704811927331,-626.79,0.00024729,3]
[310899649,1704811927359,-688.79640782,0.00024737,2]
[310899650,1704811927387,-2099.91652736,0.00024737,2]
[310899651,1704811927415,-242.44438478,0.00024737,2]
[310899652,1704811927444,-560.14633467,0.00024737,2]
[310899653,1704811927476,-261.61795864,0.00024737,2]
[310899654,1704811927505,-615.50953562,0.00024738,2]
[310899655,1704811927534,-63719.84200657,0.00024739,2]
[310899656,1704811935979,-154.90705577,0.00022262,4]
[310899657,1704811936007,-55657.88088057,0.00024739,2]
[310899658,1704811936035,-578.6218737,0.00024739,2]
[310899659,1704811936063,-533.78617654,0.00024739,2]
[310899660,1704811936092,-23074.80401342,0.00024739,2]
[310899661,1704811942629,-522.32,0.00024729,3]
[310899662,1704811942659,-1271.06447814,0.00024738,2]
[310899663,1704811942688,-78206.61552186,0.00024739,2]
[310899664,1704811948000,-3477.2521975,0.00024728,2]
[310899665,1704811948029,-859.63853845,0.00024737,2]
[310899666,1704811948058,-154.90705577,0.00024737,2]
[310899667,1704811948086,-745.63478189,0.00024737,2]
[310899668,1704811948113,-164.68012529,0.00024738,2]
[310899669,1704811948143,-74597.8873011,0.00024739,2]
[310899670,1704811956930,-154.90705577,0.00022263,4]
[310899671,1704811956959,-435.27,0.00024729,3]
[310899672,1704811956989,-444.45127681,0.00024738,2]
[310899673,1704811957017,-78965.37166742,0.00024738,2]
[310899674,1704811960194,-629.93044377,0.00022262,2]
[310899675,1704811960504,-12.85572334,0.00022262,2]
[310899676,1704811963837,-2113.50170471,0.00024242,2]
[310899677,1704811963937,-43.13268785,0.00024242,2]
[310899678,1704811975638,-5000.0,0.00023739,2]
[310899679,1704811975934,-154.90705577,0.00022262,4]
[310899680,1704811975965,-4845.09294423,0.00023739,2]
[310899681,1704811976057,-5000.0,0.00023739,2]
[310899682,1704811976469,-5000.0,0.00023739,2]
[310899683,1704811976515,-5000.0,0.00023739,2]
[310899684,1704811976568,-54.90705577,0.00023739,2]
[310899686,1704811993830,-635.96775043,0.00022639,2]
[310899687,1704811993989,-12.97893368,0.00022639,2]
[310899688,1704812010119,-511.31436595,0.00022261,2]
[310899689,1704812010427,-10.43498706,0.00022261,2]
[310899690,1704812018286,-154.90705577,0.00022262,4]
[310899691,1704812018315,-4845.09294423,0.00022639,2]
[310899692,1704812018712,-5000.0,0.00022639,2]
[310899693,1704812018804,-5000.0,0.00022639,2]
[310899694,1704812018913,-5000.0,0.00022639,2]
[310899695,1704812019196,-5000.0,0.00022639,2]
[310899696,1704812019408,-5000.0,0.00022639,2]
[310899697,1704812019509,-5000.0,0.00022639,2]
[310899698,1704812019710,-5000.0,0.00022639,2]
[310899699,1704812019821,-5000.0,0.00022639,2]
[310899700,1704812020012,-264.80820677,0.00022261,2]
[310899701,1704812020041,-4735.19179323,0.00022639,2]
[310899702,1704812020119,-5000.0,0.00022639,2]
[310899703,1704812020325,-5000.0,0.00022639,2]
[310899704,1704812020421,-5000.0,0.00022639,2]
[310899705,1704812020545,-5000.0,0.00022639,2]
[310899706,1704812020629,-5000.0,0.00022639,2]
[310899707,1704812020874,-5000.0,0.00022639,2]
[310899708,1704812020992,-5000.0,0.00022639,2]
[310899709,1704812021214,-215.74,0.00022629,3]
[310899710,1704812021243,-4784.26,0.00022639,2]
[310899711,1704812021361,-5000.0,0.00022639,2]
[310899712,1704812021491,-5000.0,0.00022639,2]
[310899713,1704812021778,-5000.0,0.00022639,2]
[310899714,1704812021821,-5000.0,0.00022639,2]
[310899715,1704812021878,-5000.0,0.00022639,2]
[310899716,1704812021991,-5000.0,0.00022639,2]
[310899717,1704812022121,-5000.0,0.00022639,2]
[310899718,1704812022185,-5000.0,0.00022639,2]
[310899719,1704812022603,-5000.0,0.00022639,2]
[310899720,1704812022652,-5000.0,0.00022639,2]
[310899721,1704812022700,-5000.0,0.00022639,2]
[310899722,1704812022872,-5000.0,0.00022639,2]
[310899723,1704812022958,-5000.0,0.00022639,2]
[310899724,1704812023045,-5000.0,0.00022639,2]
[310899725,1704812023170,-5000.0,0.00022639,2]
[310899726,1704812023306,-5000.0,0.00022639,2]
[310899727,1704812023383,-5000.0,0.00022639,2]
[310899728,1704812023520,-5000.0,0.00022639,2]
[310899729,1704812023866,-5000.0,0.00022639,2]
[310899730,1704812023942,-5000.0,0.00022639,2]
[310899731,1704812024130,-5000.0,0.00022639,2]
[310899732,1704812024185,-5000.0,0.00022639,2]
[310899733,1704812024432,-5000.0,0.00022639,2]
[310899734,1704812024561,-5000.0,0.00022639,2]
[310899735,1704812024722,-5000.0,0.00022639,2]
[310899736,1704812024862,-5000.0,0.00022639,2]
[310899737,1704812024997,-5000.0,0.00022639,2]
[310899738,1704812025165,-1250.39757004,0.00022638,2]
[310899739,1704812025194,-3749.60242996,0.00022639,2]
[310899740,1704812025295,-5000.0,0.00022639,2]
[310899741,1704812025408,-5000.0,0.00022639,2]
[310899742,1704812025523,-5000.0,0.00022639,2]
[310899743,1704812025739,-5000.0,0.00022639,2]
[310899744,1704812025859,-5000.0,0.00022639,2]
[310899745,1704812026081,-5000.0,0.00022639,2]
[310899746,1704812026198,-5000.0,0.00022639,2]
[310899747,1704812026311,-5000.0,0.00022639,2]
[310899748,1704812026416,-5000.0,0.00022639,2]
[310899749,1704812026565,-5000.0,0.00022639,2]
[310899750,1704812026685,-5000.0,0.00022639,2]
[310899751,1704812026916,-311.06184385,0.00022639,2]
[310899752,1704812026945,-533.98993958,0.00022639,2]
[310899753,1704812029715,154.90705577,0.00022639,2]
[310899754,1704812034851,-154.90705577,0.00022261,4]
[310899755,1704812034881,-182.50978617,0.00022639,2]
[310899756,1704812035771,4662.58315806,0.0001631,2]
[310899757,1704812035801,1759.11302313,0.0001631,2]
[310899758,1704812040221,-5000.0,0.00022639,2]
[310899759,1704812040332,-5000.0,0.00022639,2]
[310899760,1704812040880,-5000.0,0.00022639,2]
[310899761,1704812041075,-5000.0,0.00022639,2]
[310899762,1704812041183,-5000.0,0.00022639,2]
[310899763,1704812041294,-5000.0,0.00022639,2]
[310899764,1704812041409,-5000.0,0.00022639,2]
[310899765,1704812041558,-5000.0,0.00022639,2]
[310899766,1704812041652,-5000.0,0.00022639,2]
[310899767,1704812041755,-5000.0,0.00022639,2]
[310899768,1704812041879,-5000.0,0.00022639,2]
[310899769,1704812042066,-5000.0,0.00022639,2]
[310899770,1704812042182,-5000.0,0.00022639,2]
[310899771,1704812042288,-5000.0,0.00022639,2]
[310899772,1704812042386,-5000.0,0.00022639,2]
[310899773,1704812042521,-5000.0,0.00022639,2]
[310899774,1704812042638,-5000.0,0.00022639,2]
[310899775,1704812042743,-5000.0,0.00022639,2]
[310899776,1704812042864,-5000.0,0.00022639,2]
[310899777,1704812042996,-5000.0,0.00022639,2]
[310899778,1704812043077,-5000.0,0.00022639,2]
[310899779,1704812043194,-272.31,0.00022629,3]
[310899780,1704812043224,-4727.69,0.00022639,2]
[310899781,1704812043289,-5000.0,0.00022639,2]
[310899782,1704812043423,-5000.0,0.00022639,2]
[310899783,1704812043535,-5000.0,0.00022639,2]
[310899784,1704812043634,-5000.0,0.00022639,2]
[310899785,1704812043745,-5000.0,0.00022639,2]
[310899786,1704812043902,-5000.0,0.00022639,2]
[310899787,1704812044006,-5000.0,0.00022639,2]
[310899788,1704812044232,-5000.0,0.00022639,2]
[310899789,1704812044266,-5000.0,0.00022639,2]
[310899790,1704812044305,-5000.0,0.00022639,2]
[310899791,1704812044426,-758.98341259,0.00022639,2]
[310899792,1704812044454,-154.90705577,0.00022639,2]
[310899793,1704812044482,-533.98993958,0.00022639,2]
[310899794,1704812044510,-176.84921405,0.00022639,2]
[310899795,1704812048888,-442.62092786,0.00022638,2]
[310899796,1704812049316,-9.03308016,0.00022638,2]
[310899797,1704812052369,649.92038778,0.000125,2]
[310899798,1704812055915,-154.90705577,0.00022261,4]
[310899799,1704812055943,-686.41228495,0.00022637,2]
[310899800,1704812055986,-10.22428898,0.00022638,2]
[310899801,1704812056105,-168.17601634,0.00022638,2]
[310899802,1704812056136,-182.50978617,0.00022639,2]
[310899803,1704812060285,-5000.0,0.00022639,2]
[310899804,1704812060490,-5000.0,0.00022639,2]
[310899805,1704812060548,-5000.0,0.00022639,2]
[310899806,1704812060721,-5000.0,0.00022639,2]
[310899807,1704812061055,-5000.0,0.00022639,2]
[310899808,1704812061122,-5000.0,0.00022639,2]
[310899809,1704812061204,-5000.0,0.00022639,2]
[310899810,1704812061262,-5000.0,0.00022639,2]
[310899811,1704812061311,-5000.0,0.00022639,2]
[310899812,1704812061410,-5000.0,0.00022639,2]
[310899813,1704812061538,-5000.0,0.00022639,2]
[310899814,1704812061671,-5000.0,0.00022639,2]
[310899815,1704812061773,-5000.0,0.00022639,2]
[310899816,1704812061884,-5000.0,0.00022639,2]
[310899817,1704812062015,-5000.0,0.00022639,2]
[310899818,1704812062132,-5000.0,0.00022639,2]
[310899820,1704812062233,-5000.0,0.00022639,2]
[310899821,1704812062359,-5000.0,0.00022639,2]
[310899822,1704812062484,-5000.0,0.00022639,2]
[310899823,1704812062848,-5000.0,0.00022639,2]
[310899824,1704812062887,-5000.0,0.00022639,2]
[310899825,1704812063091,-2660.89597385,0.00022639,2]
[310899826,1704812063120,-533.98993958,0.00022639,2]
[310899827,1704812063148,-1805.11408657,0.00022639,2]
[310899828,1704812063184,-5000.0,0.00022639,2]
[310899829,1704812063218,-3469.32050511,0.00022639,2]
[310899830,1704812063247,-1530.67949489,0.00022639,2]
[310899831,1704812063316,-3679.35693602,0.00022639,2]
[310899832,1704812063345,-154.90705577,0.00022639,2]
[310899833,1704812063689,268.14738463,0.00022639,2]
[310899834,1704812066747,268.46069406,0.0001,2]
[310899835,1704812069878,-182.50978617,0.00022639,2]
[310899836,1704812069907,-44.62477238,0.00024239,2]
[310899837,1704812070055,-187.14518532,0.00024239,2]
[310899838,1704812071722,39.98937323,0.00022261,4]
[310899839,1704812071754,114.91768254,0.00022261,4]
[310899840,1704812079569,-5000.0,0.00022639,2]
[310899841,1704812079723,-205.25046496,0.00022639,2]
[310899842,1704812080062,533.98993958,0.00022639,2]
[310899843,1704812088245,-154.90705577,0.00022252,4]
[310899844,1704812088272,-154.90705577,0.00022639,2]
[310899845,1704812088300,-20.59291949,0.00022639,2]
[310899846,1704812088534,-161.6500564,0.00022639,2]
[310899847,1704812094374,-265.22700969,0.00022639,2]
[310899848,1704812094549,-5.41279612,0.00022639,2]
[310899850,1704812107451,-154.90705577,0.00022639,2]
[310899851,1704812107480,-4845.09294423,0.00022639,2]
[310899852,1704812107676,-5000.0,0.00022639,2]
[310899853,1704812107803,-154.90705577,0.00022252,4]
[310899854,1704812107832,-420.74168417,0.00022639,2]
[310899855,1704812107862,-3477.2521975,0.0002423,2]